bitfinex-derivatives/quotes_BTCF0:USTF0_20250510
["timestamp","ask_amount","ask_price","bid_price","bid_amount"]
[1746859527622,0.287235,103700.0,103690.0,0.92890372]
[1746859527824,0.3340546,103700.0,103690.0,0.92890372]
[1746859528126,0.3024546,103700.0,103690.0,0.92890372]
[1746859528625,0.2702546,103700.0,103690.0,0.92890372]
[1746859529629,0.3331546,103700.0,103690.0,0.92890372]
[1746859530228,0.3331546,103700.0,103690.0,0.76290372]
[1746859530928,0.286335,103700.0,103690.0,0.76290372]
[1746859531131,0.3331546,103700.0,103690.0,0.92890372]
[1746859532328,0.3331546,103700.0,103690.0,0.76290372]
[1746859533323,0.3331546,103700.0,103690.0,0.40210372]
[1746859534932,0.3331546,103700.0,103690.0,0.52990372]
[1746859535322,0.286335,103700.0,103690.0,0.52990372]
[1746859535522,0.3331546,103700.0,103690.0,0.52990372]
[1746859536533,0.3331546,103700.0,103690.0,0.30435012]
[1746859536724,0.3331546,103700.0,103690.0,0.49720372]
[1746859536925,0.3331546,103700.0,103690.0,0.52920372]
[1746859538336,0.3403846,103700.0,103690.0,0.52920372]
[1746859538537,0.293565,103700.0,103690.0,0.52920372]
[1746859538739,0.3403846,103700.0,103690.0,0.52920372]
[1746859538940,0.293565,103700.0,103690.0,0.52920372]
[1746859539238,0.3403846,103700.0,103690.0,0.52920372]
[1746859540142,0.293565,103700.0,103690.0,0.52920372]
[1746859540335,0.3403846,103700.0,103690.0,0.52920372]
[1746859541840,0.3403846,103700.0,103690.0,0.89000372]
[1746859542045,0.49298015,103740.0,103690.0,1.23364292]
[1746859542338,0.31563662,103740.0,103730.0,0.6003989]
[1746859542530,0.12287592,103740.0,103730.0,0.9559189]
[1746859542737,0.14627602,103760.0,103750.0,0.1927421]
[1746859542936,0.14627602,103760.0,103750.0,0.7281617]
[1746859543140,0.33899952,103760.0,103750.0,1.0845817]
[1746859543341,0.37209952,103760.0,103750.0,1.1165817]
[1746859543539,0.37209952,103760.0,103750.0,1.16614299]
[1746859544139,0.37309952,103760.0,103750.0,1.17581322]
[1746859544339,0.40369952,103760.0,103750.0,1.17581322]
[1746859544545,0.40369952,103760.0,103750.0,1.19022124]
[1746859544741,0.8358539,103760.0,103750.0,0.40458891]
[1746859545047,0.8358539,103760.0,103750.0,0.30820802]
[1746859545048,0.8684539,103760.0,103750.0,0.30820802]
[1746859545346,0.8694539,103760.0,103750.0,0.01440802]
[1746859545546,0.1927421,103750.0,103740.0,1.28252]
[1746859545754,0.68839648,103750.0,103740.0,1.28252]
[1746859545958,0.68839648,103750.0,103740.0,1.37890089]
[1746859548853,0.68939648,103750.0,103740.0,1.37890089]
[1746859549057,0.1927607,103740.0,103730.0,0.18730058]
[1746859549252,0.32741508,103740.0,103730.0,0.44258058]
[1746859549450,0.35931508,103740.0,103730.0,0.39273348]
[1746859550156,0.2879607,103740.0,103730.0,0.58551278]
[1746859550353,0.2879607,103740.0,103730.0,0.39273348]
[1746859551759,0.35931508,103740.0,103730.0,0.39273348]
[1746859552157,0.35931508,103740.0,103730.0,0.58551278]
[1746859552349,0.35931508,103740.0,103730.0,0.39273348]
[1746859552546,0.2879607,103740.0,103730.0,0.39273348]
[1746859554753,0.35931508,103740.0,103730.0,0.12809018]
[1746859554960,0.79146946,103740.0,103730.0,0.12764]
[1746859555552,0.72011508,103740.0,103730.0,0.12764]
[1746859555855,0.88611508,103740.0,103730.0,0.12764]
[1746859556458,0.88711508,103740.0,103730.0,0.12764]
[1746859556861,0.88911508,103740.0,103730.0,0.12764]
[1746859557161,0.72311508,103740.0,103730.0,0.12764]
[1746859557848,0.6517607,103740.0,103730.0,0.12764]
[1746859558048,0.88911508,103740.0,103730.0,0.12764]
[1746859558961,0.1927793,103730.0,103720.0,0.16074]
[1746859559155,0.32533368,103730.0,103720.0,0.16074]
[1746859559357,0.32533368,103730.0,103720.0,0.25713947]
[1746859560956,0.68613368,103730.0,103720.0,0.22403947]
[1746859561260,0.85213368,103730.0,103720.0,0.22403947]
[1746859562154,0.68613368,103730.0,103720.0,0.22403947]
[1746859562953,0.68813368,103730.0,103720.0,0.22403947]
[1746859563363,0.68813368,103730.0,103720.0,0.25463947]
[1746859563663,0.68913368,103730.0,103720.0,0.25463947]
[1746859564664,0.68913368,103730.0,103720.0,0.28673947]
[1746859566161,0.6177793,103730.0,103720.0,0.28673947]
[1746859566362,0.68913368,103730.0,103720.0,0.28673947]
[1746859566562,0.68913368,103730.0,103720.0,0.15909947]
[1746859566762,0.6177793,103730.0,103720.0,0.15909947]
[1746859567157,0.68913368,103730.0,103720.0,0.28673947]
[1746859567357,0.68913368,103730.0,103720.0,0.25463947]
[1746859569867,0.68913368,103730.0,103720.0,0.22403947]
[1746859570067,0.68913368,103730.0,103720.0,0.25643947]
[1746859573571,0.68913368,103730.0,103720.0,0.28933947]
[1746859575874,0.6177793,103730.0,103720.0,0.28933947]
[1746859576070,0.68913368,103730.0,103720.0,0.28933947]
[1746859577375,0.68913368,103730.0,103720.0,0.16169947]
[1746859577574,0.68913368,103730.0,103720.0,0.12879947]
[1746859577770,0.68913368,103730.0,103720.0,0.09639947]
[1746859577976,0.1927979,103720.0,103710.0,0.23070626]
[1746859578162,0.71755228,103720.0,103710.0,0.23070626]
[1746859578367,0.71755228,103720.0,103710.0,0.32711503]
[1746859580568,0.71755228,103720.0,103710.0,0.32487503]
[1746859582279,0.71955228,103720.0,103710.0,0.32487503]
[1746859583064,0.72055228,103720.0,103710.0,0.32487503]
[1746859584778,0.6491979,103720.0,103710.0,0.32487503]
[1746859585073,0.72055228,103720.0,103710.0,0.32487503]
[1746859589673,0.696076,103720.0,103710.0,0.32487503]
[1746859590583,0.7429541,103720.0,103710.0,0.32487503]
[1746859592385,0.7501841,103720.0,103710.0,0.32487503]
[1746859593085,0.7501841,103720.0,103710.0,0.26107503]
[1746859593287,0.7501841,103720.0,103710.0,0.22917503]
[1746859594285,0.7501841,103720.0,103710.0,0.26087503]
[1746859597486,0.7501841,103720.0,103710.0,0.29227503]
[1746859600688,0.7501841,103720.0,103710.0,0.26087503]
[1746859602591,0.7501841,103720.0,103710.0,0.29157503]
[1746859602995,0.7501841,103720.0,103710.0,0.32267503]
[1746859603489,0.6564279,103720.0,103710.0,0.32267503]
[1746859603684,0.2650279,103720.0,103710.0,0.32267503]
[1746859603880,0.2348279,103720.0,103710.0,0.32267503]
[1746859604089,0.281706,103720.0,103710.0,0.48867503]
[1746859604293,0.281706,103720.0,103710.0,0.68149143]
[1746859604793,0.280706,103720.0,103710.0,0.68149143]
[1746859605394,0.280706,103720.0,103710.0,1.04229143]
[1746859606095,0.280706,103720.0,103710.0,0.84947503]
[1746859606286,0.278706,103720.0,103710.0,0.84947503]
[1746859607994,0.278706,103720.0,103710.0,0.48867503]
[1746859609098,0.344206,103720.0,103710.0,0.48867503]
[1746859613202,0.344206,103720.0,103710.0,0.32267503]
[1746859616110,0.344206,103720.0,103710.0,0.48867503]
[1746859616403,0.344206,103720.0,103710.0,0.35735503]
[1746859616592,0.7518841,103720.0,103710.0,0.55459503]
[1746859617099,0.7518841,103720.0,103710.0,0.38859503]
[1746859617997,0.7538841,103720.0,103710.0,0.38859503]
[1746859618504,0.7548841,103720.0,103710.0,0.38859503]
[1746859619405,0.7548841,103720.0,103710.0,0.35665503]
[1746859620701,0.7548841,103720.0,103710.0,0.09785503]
[1746859620905,0.7548841,103720.0,103710.0,0.22765503]
[1746859622605,0.7548841,103720.0,103710.0,0.09785503]
[1746859624707,0.7548841,103720.0,103710.0,0.12975503]
[1746859626410,0.3940841,103720.0,103710.0,0.12975503]
[1746859626611,0.347206,103720.0,103710.0,0.32325503]
[1746859628209,0.708006,103720.0,103710.0,0.48925503]
[1746859629411,0.708006,103720.0,103710.0,0.32325503]
[1746859630010,0.708006,103720.0,103710.0,0.29185503]
[1746859630211,0.7548841,103720.0,103710.0,0.22765503]
[1746859634118,0.7548841,103720.0,103710.0,0.28885503]
[1746859634318,0.7548841,103720.0,103710.0,0.32135503]
[1746859634817,0.708006,103720.0,103710.0,0.32135503]
[1746859635524,0.7548841,103720.0,103710.0,0.32135503]
[1746859638126,0.708006,103720.0,103710.0,0.32135503]
[1746859639120,0.7548841,103720.0,103710.0,0.32135503]
[1746859642029,0.7548841,103720.0,103710.0,0.29055503]
[1746859642228,0.7548841,103720.0,103710.0,0.25805503]
[1746859642926,0.7548841,103720.0,103710.0,0.12825503]
[1746859645033,0.7548841,103720.0,103710.0,0.09785503]
[1746859647129,0.7548841,103720.0,103710.0,0.09640877]
[1746859647724,0.1928164,103710.0,103700.0,0.3619578]
[1746859647922,0.1928164,103710.0,103700.0,0.2340378]
[1746859647923,0.3346945,103710.0,103700.0,0.2340378]
[1746859648237,0.3346945,103710.0,103700.0,0.45837586]
[1746859652040,0.2878164,103710.0,103700.0,0.45837586]
[1746859652335,0.3346945,103710.0,103700.0,0.45837586]
[1746859653327,0.3419245,103710.0,103700.0,0.45837586]
[1746859654829,0.35756196,103710.0,103700.0,0.45837586]
[1746859656033,0.78087752,103710.0,103700.0,0.12951806]
[1746859656237,0.192835,103700.0,103690.0,0.67307519]
[1746859656533,0.41156612,103700.0,103690.0,0.76960255]
[1746859657736,0.41156612,103700.0,103690.0,0.29057074]
[1746859657929,0.77236612,103700.0,103690.0,0.29057074]
[1746859658130,0.83488168,103700.0,103690.0,0.29057074]
[1746859658331,0.83488168,103700.0,103690.0,0.10514075]
[1746859658633,0.77236612,103700.0,103690.0,0.11932453]
[1746859659040,0.77236612,103700.0,103690.0,0.12132453]
[1746859659830,0.1928536,103690.0,103680.0,0.19723873]
[1746859660033,0.74358472,103690.0,103680.0,0.19723873]
[1746859660230,0.77388472,103690.0,103680.0,0.13034913]
[1746859660435,0.77388472,103690.0,103680.0,3e-08]
[1746859660635,0.1928722,103680.0,103670.0,0.24338349]
[1746859660826,0.80371888,103680.0,103670.0,0.24338349]
[1746859661230,0.90720332,103680.0,103670.0,0.24338349]
[1746859661940,0.90820332,103680.0,103670.0,0.24938349]
[1746859662140,0.74220332,103680.0,103670.0,0.24938349]
[1746859662333,0.80471888,103680.0,103670.0,6e-08]
[1746859662527,0.80471888,103680.0,103660.0,0.12792]
[1746859662528,0.1928908,103670.0,103660.0,0.12792]
[1746859662832,0.77232192,103670.0,103660.0,0.22437526]
[1746859663232,0.1929095,103660.0,103650.0,0.23098783]
[1746859663432,0.74184062,103660.0,103650.0,0.23098783]
[1746859663633,0.74184062,103660.0,103650.0,0.2961524]
[1746859664136,0.80435618,103660.0,103650.0,0.10711163]
[1746859664442,0.1929467,103640.0,103630.0,0.29041643]
[1746859664631,0.67877782,103640.0,103630.0,0.29041643]
[1746859664832,0.87279782,103640.0,103630.0,0.40128113]
[1746859665338,0.81028226,103640.0,103630.0,0.40128113]
[1746859665534,0.81028226,103640.0,103630.0,0.43298113]
[1746859665735,0.84416593,103640.0,103630.0,0.43598113]
[1746859665931,0.71304593,103640.0,103630.0,0.44098113]
[1746859666135,0.2266467,103640.0,103630.0,1.00008113]
[1746859666440,0.68284593,103640.0,103630.0,0.60698113]
[1746859666642,0.71304593,103640.0,103630.0,0.60698113]
[1746859667140,0.71304593,103640.0,103630.0,0.1505647]
[1746859667743,0.71304593,103640.0,103630.0,0.02239083]
[1746859668044,0.71304593,103640.0,103630.0,0.14978332]
[1746859668941,0.6176467,103640.0,103630.0,0.14978332]
[1746859669244,0.6176467,103640.0,103630.0,0.31578332]
[1746859669443,0.71304593,103640.0,103630.0,0.34858332]
[1746859670343,0.71304593,103640.0,103630.0,0.18258332]
[1746859672740,0.71304593,103640.0,103630.0,0.18560003]
[1746859674146,0.71304593,103640.0,103630.0,0.35160003]
[1746859674843,0.72304593,103640.0,103630.0,0.35160003]
[1746859675143,0.72304593,103640.0,103630.0,0.18560003]
[1746859675737,0.71304593,103640.0,103630.0,0.18560003]
[1746859675944,1.08304593,103640.0,103630.0,0.18560003]
[1746859676238,0.72304593,103640.0,103630.0,0.18560003]
[1746859676445,0.71304593,103640.0,103630.0,0.18560003]
[1746859676746,0.72304593,103640.0,103630.0,0.18560003]
[1746859677337,0.73304593,103640.0,103630.0,0.18560003]
[1746859678348,0.71304593,103640.0,103630.0,0.18560003]
[1746859678550,0.74304593,103640.0,103630.0,0.18560003]
[1746859678743,1.06304593,103640.0,103630.0,0.18560003]
[1746859679541,1.07027593,103640.0,103630.0,0.18560003]
[1746859680945,1.07027593,103640.0,103630.0,0.15280003]
[1746859681245,1.07027593,103640.0,103630.0,4e-08]
[1746859682550,0.74027593,103640.0,103630.0,4e-08]
[1746859683538,0.1929653,103630.0,103620.0,0.01431232]
[1746859683856,1.25702453,103630.0,103620.0,2e-08]
[1746859684850,1.25702453,103630.0,103620.0,0.00400002]
[1746859685541,1.25702453,103630.0,103620.0,0.00500002]
[1746859685746,1.2878909,103630.0,103620.0,0.00500002]
[1746859686154,1.4538909,103630.0,103620.0,0.00500002]
[1746859687149,1.4538909,103630.0,103620.0,2e-08]
[1746859687350,0.1929839,103620.0,103610.0,0.0304]
[1746859687546,1.0725495,103620.0,103610.0,0.0304]
[1746859687746,1.0725495,103620.0,103610.0,0.04453178]
[1746859688650,1.0735495,103620.0,103610.0,0.04553178]
[1746859688855,1.07355364,103620.0,103610.0,0.04553178]
[1746859689361,0.9482839,103620.0,103610.0,0.04553178]
[1746859689546,0.9179839,103620.0,103610.0,0.1420429]
[1746859689852,0.65061877,103620.0,103610.0,0.1734429]
[1746859690055,0.5879839,103620.0,103610.0,0.1734429]
[1746859690248,0.1949839,103620.0,103610.0,0.8992454]
[1746859690654,0.25761877,103620.0,103610.0,0.8992454]
[1746859690856,0.1949839,103620.0,103610.0,0.96188027]
[1746859691058,0.18915672,103620.0,103610.0,0.8932454]
[1746859691259,0.18915672,103620.0,103610.0,0.8942454]
[1746859692960,0.18915672,103620.0,103610.0,0.7012429]
[1746859693148,0.21915672,103620.0,103610.0,0.3404429]
[1746859693352,0.21915672,103620.0,103610.0,0.7012429]
[1746859693760,0.3145764,103620.0,103610.0,0.5334454]
[1746859694163,0.21915672,103620.0,103610.0,0.8942454]
[1746859694766,0.18915672,103620.0,103610.0,0.8942454]
[1746859695566,0.18915672,103620.0,103610.0,0.7012429]
[1746859695863,0.21915672,103620.0,103610.0,0.89726228]
[1746859697159,0.18915672,103620.0,103610.0,0.89726228]
[1746859697367,0.18915672,103620.0,103610.0,0.99268196]
[1746859698064,0.18915672,103620.0,103610.0,1.08919396]
[1746859698456,0.36979793,103640.0,103630.0,0.1929653]
[1746859698662,0.36979793,103640.0,103630.0,1.1792453]
[1746859698964,0.36979793,103640.0,103630.0,1.24666218]
[1746859699166,0.36979793,103640.0,103630.0,1.5091733]
[1746859699670,0.49631761,103640.0,103630.0,0.461528]
[1746859699863,0.91911761,103640.0,103630.0,0.594768]
[1746859700166,0.84798578,103640.0,103630.0,0.265068]
[1746859700465,0.84998578,103640.0,103630.0,0.265068]
[1746859700664,0.84998578,103640.0,103630.0,0.232768]
[1746859700963,0.99998578,103640.0,103630.0,0.232768]
[1746859701453,1.19998578,103640.0,103630.0,0.232768]
[1746859701660,1.00998578,103640.0,103630.0,0.13625688]
[1746859702056,0.84998578,103640.0,103630.0,0.00301688]
[1746859702359,1.22998578,103640.0,103630.0,0.00301688]
[1746859703156,1.22998578,103640.0,103630.0,0.00201688]
[1746859703356,0.86998578,103640.0,103630.0,0.00201688]
[1746859703860,0.84998578,103640.0,103630.0,0.00201688]
[1746859704059,0.1929653,103630.0,103620.0,0.22764]
[1746859704262,0.77178498,103630.0,103620.0,0.22764]
[1746859704464,0.77178498,103630.0,103620.0,0.32413249]
[1746859705067,0.77178498,103630.0,103620.0,0.49013249]
[1746859705362,0.77178498,103630.0,103620.0,0.29349249]
[1746859705563,0.77278498,103630.0,103620.0,0.29449249]
[1746859706368,0.77278498,103630.0,103620.0,0.12849249]
[1746859706571,1.16820466,103630.0,103620.0,0.001]
[1746859706869,0.71278498,103630.0,103620.0,0.001]
[1746859707055,0.85278498,103630.0,103620.0,0.001]
[1746859707261,0.80820466,103630.0,103620.0,0.001]
[1746859707462,0.90278498,103630.0,103620.0,0.001]
[1746859708064,0.99820466,103630.0,103620.0,0.001]
[1746859708571,0.90278498,103630.0,103620.0,0.001]
[1746859709071,0.99820466,103630.0,103620.0,0.001]
[1746859709464,0.8073653,103630.0,103620.0,0.001]
[1746859709669,0.99820466,103630.0,103620.0,0.001]
[1746859710865,0.90278498,103630.0,103620.0,0.001]
[1746859711271,1.03730498,103630.0,103620.0,0.001]
[1746859711672,1.13516001,103630.0,103620.0,0.001]
[1746859711875,0.81064001,103630.0,103620.0,0.001]
[1746859712169,0.81064001,103630.0,103620.0,0.2608]
[1746859712374,1.13064001,103630.0,103620.0,0.2282]
[1746859712674,0.81064001,103630.0,103620.0,0.2282]
[1746859712875,1.15787001,103630.0,103620.0,0.2282]
[1746859713174,0.81787001,103630.0,103620.0,0.3573018]
[1746859713768,0.81787001,103630.0,103620.0,0.2943018]
[1746859714268,0.81787001,103630.0,103620.0,0.3269018]
[1746859715075,0.1929839,103620.0,103610.0,0.014331]
[1746859715275,0.74500358,103620.0,103610.0,0.105631]
[1746859715469,0.74500358,103620.0,103610.0,0.20515015]
[1746859715669,0.6495839,103620.0,103610.0,0.20515015]
[1746859715869,0.74500358,103620.0,103610.0,0.20515015]
[1746859716069,0.74500358,103620.0,103610.0,0.37115015]
[1746859716270,0.6170839,103620.0,103610.0,0.37115015]
[1746859716578,0.5851839,103620.0,103610.0,0.70067265]
[1746859716878,0.5861839,103620.0,103610.0,0.70167265]
[1746859717176,0.2253839,103620.0,103610.0,1.06247265]
[1746859719375,0.2253839,103620.0,103610.0,1.15789233]
[1746859719576,0.1939839,103620.0,103610.0,1.25440433]
[1746859720383,0.1939839,103620.0,103610.0,1.15898465]
[1746859720677,0.1939839,103620.0,103610.0,1.60440433]
[1746859720975,0.1939839,103620.0,103610.0,1.31247265]
[1746859721173,0.1939839,103620.0,103610.0,1.06247265]
[1746859721374,0.2249839,103620.0,103610.0,1.06247265]
[1746859722277,0.1939839,103620.0,103610.0,1.15789233]
[1746859723176,0.1939839,103620.0,103610.0,1.60440433]
[1746859723877,0.2967012,103630.0,103620.0,0.1929839]
[1746859724071,0.2001953,103630.0,103620.0,0.84686093]
[1746859724271,0.2001953,103630.0,103620.0,1.20936093]
[1746859724474,0.2001953,103630.0,103620.0,2.46143205]
[1746859724673,0.2001953,103630.0,103620.0,2.4584147]
[1746859725381,0.2011953,103630.0,103620.0,2.4584147]
[1746859727977,0.00823,103630.0,103620.0,2.4584147]
[1746859728683,0.2011953,103630.0,103620.0,2.4584147]
[1746859731485,0.00823,103630.0,103620.0,2.55383438]
[1746859731692,0.00823,103630.0,103620.0,2.4584147]
[1746859732588,0.00823,103630.0,103620.0,2.3619147]
[1746859732985,0.21831954,103660.0,103620.0,2.61085048]
[1746859733180,0.44235724,103660.0,103650.0,0.64914778]
[1746859733381,0.44235724,103660.0,103650.0,0.8206481]
[1746859733685,0.44235724,103660.0,103650.0,0.5570481]
[1746859733986,0.47235724,103660.0,103650.0,0.65352197]
[1746859734286,0.47235724,103660.0,103650.0,0.81952197]
[1746859734688,0.56777692,103660.0,103650.0,0.62659387]
[1746859734890,0.47235724,103660.0,103650.0,0.81952197]
[1746859735187,0.47635724,103660.0,103650.0,0.81952197]
[1746859736194,0.47235724,103660.0,103650.0,1.18032197]
[1746859736491,0.48035724,103660.0,103650.0,1.19004824]
[1746859737489,0.4047276,103660.0,103650.0,1.19004824]
[1746859738296,0.3987276,103660.0,103650.0,1.19004824]
[1746859738493,0.4017276,103660.0,103650.0,1.19104824]
[1746859739096,0.4017276,103660.0,103650.0,0.99812014]
[1746859739294,0.4017276,103660.0,103650.0,0.93382014]
[1746859739793,0.4017276,103660.0,103650.0,0.57302014]
[1746859742599,0.4017276,103660.0,103650.0,0.54012014]
[1746859743295,0.4017276,103660.0,103650.0,0.57312014]
[1746859743495,0.4017276,103660.0,103650.0,0.76604824]
[1746859745093,0.4017276,103660.0,103650.0,0.57312014]
[1746859746800,0.4017276,103660.0,103650.0,0.76604824]
[1746859747298,0.4017276,103660.0,103650.0,0.57312014]
[1746859751901,0.4017276,103660.0,103650.0,0.54012014]
[1746859753704,0.4017276,103660.0,103650.0,0.53916014]
[1746859754302,0.49714728,103660.0,103650.0,0.53908014]
[1746859755209,0.49714728,103660.0,103650.0,0.26347387]
[1746859755394,0.49714728,103660.0,103650.0,0.52919387]
[1746859755594,0.57077692,103660.0,103650.0,0.52975387]
[1746859755804,0.57077692,103660.0,103650.0,0.26347387]
[1746859756000,0.93157692,103660.0,103650.0,0.26347387]
[1746859756199,0.93157692,103660.0,103650.0,0.23107387]
[1746859759705,0.95580231,103660.0,103650.0,0.23107387]
[1746859760290,0.95580231,103660.0,103650.0,0.001]
[1746859761110,1.12180231,103660.0,103650.0,0.001]
[1746859761607,1.21722199,103660.0,103650.0,1e-07]
[1746859761800,1.12180231,103660.0,103650.0,1e-07]
[1746859763405,1.18614511,103660.0,103650.0,1e-07]
[1746859767209,1.02014511,103660.0,103650.0,1e-07]
[1746859772110,0.1929653,103630.0,103620.0,1.5260842]
[1746859772301,0.1929653,103630.0,103620.0,0.59058]
[1746859772508,0.2237653,103630.0,103620.0,0.7835639]
[1746859772707,0.2237653,103630.0,103620.0,0.97545745]
[1746859773208,0.3376847,103640.0,103630.0,0.1929653]
[1746859773405,0.3691847,103640.0,103630.0,0.48486498]
[1746859773710,0.3691847,103640.0,103630.0,0.3894453]
[1746859774102,0.3691847,103640.0,103630.0,0.65193779]
[1746859774297,0.44282188,103640.0,103630.0,0.65193779]
[1746859774709,0.44482188,103640.0,103630.0,0.65293779]
[1746859775914,0.44482188,103640.0,103630.0,0.65493779]
[1746859776712,0.44682188,103640.0,103630.0,0.45997249]
[1746859778215,0.44682188,103640.0,103630.0,0.65293779]
[1746859778410,0.44682188,103640.0,103630.0,0.49097249]
[1746859778603,0.87020932,103640.0,103630.0,0.49097249]
[1746859778808,0.87020932,103640.0,103630.0,0.35989249]
[1746859779014,0.79657214,103640.0,103630.0,0.49061249]
[1746859779517,0.79657214,103640.0,103630.0,0.49078322]
[1746859780618,0.1969467,103640.0,103630.0,1.10713596]
[1746859783722,0.1969467,103640.0,103630.0,1.04454852]
[1746859786533,0.2283467,103640.0,103630.0,1.04454852]
[1746859793035,0.2283467,103640.0,103630.0,1.13991021]
[1746859794135,0.2355767,103640.0,103630.0,1.13991021]
[1746859794536,0.2355767,103640.0,103630.0,1.04454852]
[1746859795633,0.2355767,103640.0,103630.0,0.91382852]
[1746859795933,0.2355767,103640.0,103630.0,1.17154852]
[1746859796135,0.2657767,103640.0,103630.0,1.17154852]
[1746859796636,0.2989767,103640.0,103630.0,1.17154852]
[1746859796937,0.2989767,103640.0,103630.0,0.72086322]
[1746859797239,0.2989767,103640.0,103630.0,1.17154852]
[1746859799235,0.2989767,103640.0,103630.0,1.00554852]
[1746859800240,0.2989767,103640.0,103630.0,1.17154852]
[1746859803241,0.37261388,103640.0,103630.0,1.17154852]
[1746859805233,0.37261388,103640.0,103630.0,1.13890852]
[1746859807735,0.37261388,103640.0,103630.0,1.17170852]
[1746859812039,0.37261388,103640.0,103630.0,1.10790852]
[1746859812945,0.37261388,103640.0,103630.0,1.17050852]
[1746859819851,0.30921388,103640.0,103630.0,1.23309776]
[1746859820246,0.11626718,103640.0,103630.0,1.23309776]
[1746859820450,0.11626718,103640.0,103630.0,1.33309776]
[1746859820648,0.08486718,103640.0,103630.0,1.33309776]
[1746859820953,0.29111221,103650.0,103640.0,0.1929467]
[1746859821143,0.29111221,103650.0,103640.0,0.84162518]
[1746859821345,0.29111221,103650.0,103640.0,0.87342518]
[1746859821650,0.29111221,103650.0,103640.0,0.96991767]
[1746859822152,0.29111221,103650.0,103640.0,1.13591767]
[1746859822351,0.32321221,103650.0,103640.0,1.13591767]
[1746859822951,0.32321221,103650.0,103640.0,1.13691767]
[1746859823155,0.29111221,103650.0,103640.0,1.13691767]
[1746859823346,0.09818291,103650.0,103640.0,1.13791767]
[1746859823545,0.31523989,103660.0,103650.0,0.1929281]
[1746859823748,0.31523989,103660.0,103650.0,1.03783734]
[1746859823955,0.31523989,103660.0,103650.0,2.19311734]
[1746859824154,0.34733989,103660.0,103650.0,2.45559121]
[1746859825048,0.2250211,103660.0,103650.0,2.45559121]
[1746859825754,0.2260211,103660.0,103650.0,2.45559121]
[1746859826552,0.39490998,103670.0,103660.0,0.1929095]
[1746859826756,0.39490998,103670.0,103660.0,0.71269874]
[1746859826957,0.39490998,103670.0,103660.0,0.6501095]
[1746859827151,0.39490998,103670.0,103660.0,0.97516331]
[1746859828955,0.39490998,103670.0,103660.0,0.97616331]
[1746859828956,0.2975856,103670.0,103660.0,0.97616331]
[1746859829160,0.3291856,103670.0,103660.0,0.91357407]
[1746859829561,0.3301856,103670.0,103660.0,0.91357407]
[1746859830150,0.3301856,103670.0,103660.0,0.68786457]
[1746859830355,0.39277484,103670.0,103660.0,0.88170457]
[1746859830555,0.75357484,103670.0,103660.0,0.26346457]
[1746859830758,0.81616408,103670.0,103660.0,0.39218457]
[1746859831161,0.75357484,103670.0,103660.0,0.22618457]
[1746859831364,0.81616408,103670.0,103660.0,0.22618457]
[1746859831758,0.78597484,103670.0,103660.0,0.22618457]
[1746859832151,1.01456408,103670.0,103660.0,0.12972]
[1746859832566,1.01456408,103670.0,103660.0,0.001]
[1746859833457,0.95197484,103670.0,103660.0,0.001]
[1746859834266,0.78597484,103670.0,103660.0,0.001]
[1746859834466,0.84856408,103670.0,103660.0,1e-07]
[1746859834857,0.94502809,103670.0,103660.0,1e-07]
[1746859835057,1.11102809,103670.0,103660.0,1e-07]
[1746859836565,1.04843885,103670.0,103660.0,1e-07]
[1746859837170,0.88243885,103670.0,103660.0,1e-07]
[1746859839361,0.87520885,103670.0,103660.0,1e-07]
[1746859839664,0.77874484,103670.0,103660.0,1e-07]
[1746859839961,0.81150398,103670.0,103660.0,1e-07]
[1746859840670,0.7161556,103670.0,103660.0,1e-07]
[1746859840867,0.81150398,103670.0,103660.0,1e-07]
[1746859843562,0.81873398,103670.0,103660.0,1e-07]
[1746859844174,1.08119799,103670.0,103660.0,1e-07]
[1746859844369,1.20987799,103670.0,103660.0,1e-07]
[1746859847272,1.37207356,103670.0,103660.0,1e-07]
[1746859847479,1.27560955,103670.0,103660.0,1e-07]
[1746859847775,1.14692955,103670.0,103660.0,1e-07]
[1746859848175,0.98092955,103670.0,103660.0,0.1660001]
[1746859848776,1.34172955,103670.0,103660.0,0.1660001]
[1746859849179,1.34172955,103670.0,103660.0,1e-07]
[1746859851282,1.27599799,103670.0,103660.0,1e-07]
[1746859852173,1.44199799,103670.0,103660.0,1e-07]
[1746859853666,0.1929281,103650.0,103640.0,0.55546]
[1746859853867,0.28827648,103650.0,103640.0,0.55546]
[1746859854072,0.35257648,103650.0,103640.0,0.81792457]
[1746859854381,0.71337648,103650.0,103640.0,0.45712457]
[1746859855382,0.71337648,103650.0,103640.0,0.32836457]
[1746859855583,0.80872486,103650.0,103640.0,0.45700457]
[1746859856274,0.80872486,103650.0,103640.0,0.29100457]
[1746859856685,0.71537648,103650.0,103640.0,0.29100457]
[1746859857088,0.81072486,103650.0,103640.0,0.29100457]
[1746859857286,0.81372486,103650.0,103640.0,0.29100457]
[1746859858086,0.71837648,103650.0,103640.0,0.29100457]
[1746859859080,0.71837648,103650.0,103640.0,0.45700457]
[1746859861689,0.68562088,103650.0,103640.0,0.45700457]
[1746859862283,0.68562088,103650.0,103640.0,0.36054]
[1746859863088,0.68562088,103650.0,103640.0,0.19454]
[1746859863285,0.74821366,103650.0,103640.0,0.0659]
[1746859863481,0.1929467,103640.0,103630.0,0.12864]
[1746859863790,0.1929653,103630.0,103620.0,0.27182612]
[1746859864085,0.71075808,103630.0,103620.0,0.31942318]
[1746859865086,0.71175808,103630.0,103620.0,0.48742318]
[1746859865587,0.71175808,103630.0,103620.0,0.35878318]
[1746859865790,0.68027686,103630.0,103620.0,0.48746318]
[1746859867689,0.31947686,103630.0,103620.0,0.68244708]
[1746859867891,0.1939653,103630.0,103620.0,1.04324708]
[1746859868083,0.1939653,103630.0,103620.0,1.13865864]
[1746859868589,0.1939653,103630.0,103620.0,1.04324708]
[1746859873693,0.28937686,103630.0,103620.0,1.04324708]
[1746859873883,0.32177686,103630.0,103620.0,1.04324708]
[1746859875591,0.2263653,103630.0,103620.0,1.04324708]
[1746859878993,0.1939653,103630.0,103620.0,1.04324708]
[1746859879682,0.2248653,103630.0,103620.0,1.04324708]
[1746859880384,0.2248653,103630.0,103620.0,0.68244708]
[1746859882887,0.2248653,103630.0,103620.0,0.55376708]
[1746859883094,0.2248653,103630.0,103620.0,0.81104708]
[1746859883994,0.5856653,103630.0,103620.0,0.81104708]
[1746859884793,0.68107686,103630.0,103620.0,0.81104708]
[1746859885491,0.71427686,103630.0,103620.0,0.81104708]
[1746859886397,0.72150686,103630.0,103620.0,0.81104708]
[1746859886599,0.5928953,103630.0,103620.0,0.81104708]
[1746859887699,0.29469637,103630.0,103620.0,0.81104708]
[1746859888099,0.2320953,103630.0,103620.0,0.81104708]
[1746859888286,0.2320953,103630.0,103620.0,1.17184708]
[1746859889603,0.2120953,103630.0,103620.0,1.17184708]
[1746859890901,0.27469637,103630.0,103620.0,1.17184708]
[1746859893001,0.2120953,103630.0,103620.0,1.17184708]
[1746859896004,0.27469637,103630.0,103620.0,1.17184708]
[1746859896904,0.2120953,103630.0,103620.0,1.17184708]